[Event "ONJK-C 2019"]
[Site "Borne"]
[Date "2019.08.08"]
[Round "6.8"]
[White "Knol, Daniel"]
[Black "De Jong, Mats"]
[Result "1/2-1/2"]
[ECO "C54"]
[WhiteElo "1622"]
[BlackElo "1356"]
[Annotator "NA"]
[PlyCount "95"]
[EventDate "2019.08.05"]
[EventType "swiss"]
[EventCountry "NED"]
[SourceTitle "playchess.com"]
[Source "ChessBase"]
[SourceQuality "1"]
[TimeControl "5400+30"]

1. e4 {[%emt 0:00:00]} e5 {[%emt 0:00:00]} 2. Nf3 {[%emt 0:00:00]} Nc6 {[%emt 0:00:00]} 3. Bc4 {[%emt 0:00:00]} Bc5 {[%emt 0:00:01]} 4. c3 {[%emt 0:00:00]} Nf6 {[%emt 0:00:12]} 5. d3 {[%emt 0:00:02]} d6 {[%emt 0:00:24]} 6. a4 {[%emt 0:00:03]} a5 {[%emt 0:00:53]} 7. Bg5 {[%emt 0:00:14]} h6 {[%emt 0:00:31]} 8. Bh4 {[%emt 0:01:14]} Be6 {[%emt 0:00:40]} 9. Nbd2 {[%emt 0:00:08]} O-O {[%emt 0:01:06]} 10. O-O {[%emt 0:00:22]} Qe7 {[%emt 0:01:59]} 11. Re1 {[%emt 0:01:50]} Rfe8 {[%emt 0:01:55]} 12. Qb3 {[%emt 0:00:19]} Bb6 {[%emt 0:04:44]} 13. Nf1 {[%emt 0:00:52]} Bxc4 {[%emt 0:02:19]} 14. Qxc4 {[%emt 0:00:05]} Qe6 {[%emt 0:00:56]} 15. Qxe6 {[%emt 0:00:22]} fxe6 {[%emt 0:02:33]} 16. Rad1 {[%emt 0:00:49]} d5 {[%emt 0:01:42]} 17. Bg3 {[%emt 0:00:23]} Nd7 {[%emt 0:02:26]} 18. Rd2 {[%emt 0:00:19]} Bc5 {[%emt 0:05:29]} 19. exd5 {[%emt 0:02:39]} exd5 {[%emt 0:00:16]} 20. Ne3 {[%emt 0:01:14]} Nb6 {[%emt 0:04:51]} 21. Ng4 {[%emt 0:04:17]} Nxa4 {[%emt 0:09:39]} 22. Ngxe5 {[%emt 0:00:39]} Nxe5 {[%emt 0:02:12]} 23. Rxe5 {[%emt 0:00:24]} Rxe5 {[%emt 0:00:19]} 24. Bxe5 {[%emt 0:00:06]} c6 {[%emt 0:02:56]} 25. b3 {[%emt 0:03:02]} Nb6 {[%emt 0:01:25]} 26. d4 {[%emt 0:00:31]} Be7 {[%emt 0:03:26]} 27. Re2 {[%emt 0:00:16]} Kf7 {[%emt 0:00:38]} 28. Bxg7 {[%emt 0:00:10]} Bf8 {[%emt 0:03:56]} 29. Bxf8 {[%emt 0:00:22]} Kxf8 {[%emt 0:00:05]} 30. Ra2 {[%emt 0:03:08]} a4 {[%emt 0:06:36]} 31. bxa4 {[%emt 0:00:22]} Rxa4 {[%emt 0:00:13]} 32. Rxa4 {[%emt 0:02:21]} Nxa4 {[%emt 0:00:05]} 33. Ne5 {[%emt 0:01:11]} Nxc3 {[%emt 0:00:27]} 34. Kf1 {[%emt 0:00:12]} Nb5 {[%emt 0:02:38]} 35. Nf3 {[%emt 0:00:07]} Nc3 {[%emt 0:00:49]} 36. Nd2 {[%emt 0:00:56]} b6 {[%emt 0:03:04]} 37. Nb3 {[%emt 0:00:14]} Na4 {[%emt 0:00:27]} 38. Ke2 {[%emt 0:00:09]} Ke7 {[%emt 0:01:34]} 39. Kf3 {[%emt 0:03:21]} Kf6 {[%emt 0:00:42]} 40. Kf4 {[%emt 0:00:32]} c5 {[%emt 0:01:14]} 41. dxc5 {[%emt 0:00:52]} bxc5 {[%emt 0:00:54]} 42. g4 {[%emt 0:00:11]} c4 {[%emt 0:01:33]} 43. Nd4 {[%emt 0:00:04]} Nc5 {[%emt 0:05:03]} 44. h4 {[%emt 0:00:29]} Ne6+ {[%emt 0:01:20]} 45. Ke3 {[%emt 0:00:49]} Nxd4 {[%emt 0:01:52]} 46. Kxd4 {[%emt 0:00:05]} Kg6 {[%emt 0:00:51]} 47. f4 {[%emt 0:00:06]} Kf6 {[%emt 0:02:54]} 48. g5+ {[%emt 0:02:26]} 1/2-1/2

[Event "ONJK-C 2019"]
[Site "Borne"]
[Date "2019.08.08"]
[Round "6.10"]
[White "Ang, Rufus"]
[Black "Tiggelman, Vincent"]
[Result "1-0"]
[ECO "D52"]
[WhiteElo "1498"]
[BlackElo "1358"]
[Annotator "NA"]
[PlyCount "71"]
[EventDate "2019.08.05"]
[EventType "swiss"]
[EventCountry "NED"]
[SourceTitle "playchess.com"]
[Source "ChessBase"]
[SourceQuality "1"]
[TimeControl "5400+30"]

1. d4 {[%emt 0:00:00]} c6 {[%emt 0:00:00]} 2. c4 {[%emt 0:00:00]} d5 {[%emt 0:00:00]} 3. Nc3 {[%emt 0:00:00]} e6 {[%emt 0:00:00]} 4. Nf3 {[%emt 0:00:00]} Nf6 {[%emt 0:00:00]} 5. Bg5 {[%emt 0:00:01]} Nbd7 {[%emt 0:00:02]} 6. e3 {[%emt 0:00:34]} Qa5 {[%emt 0:00:12]} 7. a3 {[%emt 0:00:20]} Ne4 {[%emt 0:02:35]} 8. Qc2 {[%emt 0:00:34]} Bb4 {[%emt 0:12:06]} 9. Rc1 {[%emt 0:04:23]} Bxc3+ {[%emt 0:04:37]} 10. bxc3 {[%emt 0:00:34]} Qxa3 {[%emt 0:00:27]} 11. Bd3 {[%emt 0:01:19]} Nxg5 {[%emt 0:01:01]} 12. Nxg5 {[%emt 0:00:22]} Nf6 {[%emt 0:02:00]} 13. O-O {[%emt 0:00:39]} h6 {[%emt 0:06:35]} 14. Nf3 {[%emt 0:00:23]} Qd6 {[%emt 0:01:43]} 15. c5 {[%emt 0:00:23]} Qc7 {[%emt 0:00:16]} 16. Ne5 {[%emt 0:00:49]} O-O {[%emt 0:01:22]} 17. g4 {[%emt 0:00:50]} Nd7 {[%emt 0:01:50]} 18. f4 {[%emt 0:03:24]} b6 {[%emt 0:03:59]} 19. cxb6 {[%emt 0:03:01]} axb6 {[%emt 0:00:21]} 20. g5 {[%emt 0:00:10]} hxg5 {[%emt 0:01:38]} 21. Rf3 {[%emt 0:00:41]} Nxe5 {[%emt 0:01:59]} 22. fxe5 {[%emt 0:00:44]} g6 {[%emt 0:01:30]} 23. Rg3 {[%emt 0:00:12]} Ba6 {[%emt 0:04:42]} 24. Rxg5 {[%emt 0:01:07]} Bxd3 {[%emt 0:00:39]} 25. Qxd3 {[%emt 0:00:12]} c5 {[%emt 0:01:44]} 26. h4 {[%emt 0:01:05]} Qe7 {[%emt 0:00:57]} 27. Kh2 {[%emt 0:01:00]} Ra2+ {[%emt 0:01:05]} 28. Kh3 {[%emt 0:00:16]} c4 {[%emt 0:00:21]} 29. Qb1 {[%emt 0:00:30]} Qa3 {[%emt 0:00:35]} 30. Rxg6+ {[%emt 0:00:31]} fxg6 {[%emt 0:04:33]} 31. Qxg6+ {[%emt 0:00:49]} Kh8 {[%emt 0:00:20]} 32. Qh6+ {[%emt 0:01:44]} Kg8 {[%emt 0:00:15]} 33. Rg1+ {[%emt 0:01:57]} Kf7 {[%emt 0:00:20]} 34. Rg7+ {[%emt 0:00:06]} Ke8 {[%emt 0:00:24]} 35. Qxe6+ {[%emt 0:00:05]} Kd8 {[%emt 0:00:57]} 36. Qd7# {[%emt 0:00:42]} 1-0

[Event "ONJK-C 2019"]
[Site "Borne"]
[Date "2019.08.08"]
[Round "6.11"]
[White "De Rooij, Kevin"]
[Black "Groen, Jari"]
[Result "1/2-1/2"]
[ECO "E39"]
[WhiteElo "1465"]
[BlackElo "1349"]
[Annotator "NA"]
[PlyCount "53"]
[EventDate "2019.08.05"]
[EventType "swiss"]
[EventCountry "NED"]
[SourceTitle "playchess.com"]
[Source "ChessBase"]
[SourceQuality "1"]
[TimeControl "5400+30"]

1. d4 {[%emt 0:00:00]} Nf6 {[%emt 0:00:00]} 2. c4 {[%emt 0:00:00]} e6 {[%emt 0:00:00]} 3. Nc3 {[%emt 0:00:05]} Bb4 {[%emt 0:00:00]} 4. Qc2 {[%emt 0:00:42]} O-O {[%emt 0:01:03]} 5. Nf3 {[%emt 0:01:03]} c5 {[%emt 0:00:30]} 6. dxc5 {[%emt 0:00:30]} Na6 {[%emt 0:00:33]} 7. a3 {[%emt 0:01:39]} Bxc3+ {[%emt 0:01:09]} 8. Qxc3 {[%emt 0:00:20]} Nxc5 {[%emt 0:00:59]} 9. Bf4 {[%emt 0:00:57]} Nce4 {[%emt 0:05:19]} 10. Qc2 {[%emt 0:01:29]} Qe7 {[%emt 0:03:29]} 11. e3 {[%emt 0:03:16]} b6 {[%emt 0:02:21]} 12. g3 {[%emt 0:07:40]} Bb7 {[%emt 0:04:13]} 13. Bg2 {[%emt 0:01:02]} d6 {[%emt 0:03:03]} 14. O-O {[%emt 0:04:08]} Rfd8 {[%emt 0:03:11]} 15. Ng5 {[%emt 0:03:11]} Nxg5 {[%emt 0:04:13]} 16. Bxg5 {[%emt 0:00:39]} Bxg2 {[%emt 0:01:50]} 17. Kxg2 {[%emt 0:00:07]} h6 {[%emt 0:01:01]} 18. Bxf6 {[%emt 0:00:17]} Qxf6 {[%emt 0:00:11]} 19. e4 {[%emt 0:02:36]} Rac8 {[%emt 0:04:16]} 20. Qe2 {[%emt 0:00:16]} Qd4 {[%emt 0:01:40]} 21. Rac1 {[%emt 0:01:07]} d5 {[%emt 0:00:56]} 22. exd5 {[%emt 0:01:27]} exd5 {[%emt 0:00:59]} 23. Rfd1 {[%emt 0:00:23]} Qe4+ {[%emt 0:01:40]} 24. Qxe4 {[%emt 0:00:37]} dxe4 {[%emt 0:00:06]} 25. Rxd8+ {[%emt 0:00:49]} Rxd8 {[%emt 0:00:06]} 26. c5 {[%emt 0:00:19]} bxc5 {[%emt 0:03:14]} 27. Rxc5 {[%emt 0:01:35]} 1/2-1/2

[Event "ONJK-C 2019"]
[Site "Borne"]
[Date "2019.08.08"]
[Round "6.12"]
[White "Vleming, Annabel"]
[Black "Den Heijer, Rolinde"]
[Result "0-1"]
[ECO "D38"]
[WhiteElo "1334"]
[BlackElo "1471"]
[Annotator "NA"]
[PlyCount "94"]
[EventDate "2019.08.05"]
[EventType "swiss"]
[EventCountry "NED"]
[SourceTitle "playchess.com"]
[Source "ChessBase"]
[SourceQuality "1"]
[TimeControl "5400+30"]

1. d4 {[%emt 0:00:00]} Nf6 {[%emt 0:00:00]} 2. c4 {[%emt 0:00:00]} e6 {[%emt 0:00:00]} 3. Nc3 {[%emt 0:00:00]} d5 {[%emt 0:00:25]} 4. e3 {[%emt 0:01:37]} Bb4 {[%emt 0:01:42]} 5. Nf3 {[%emt 0:01:07]} Ne4 {[%emt 0:03:26]} 6. Qc2 {[%emt 0:01:44]} Nd7 {[%emt 0:03:12]} 7. Bd3 {[%emt 0:02:36]} Bxc3+ {[%emt 0:02:42]} 8. bxc3 {[%emt 0:00:10]} Ndf6 {[%emt 0:01:15]} 9. O-O {[%emt 0:00:50]} O-O {[%emt 0:01:04]} 10. Ne5 {[%emt 0:03:04]} b6 {[%emt 0:05:48]} 11. cxd5 {[%emt 0:03:43]} exd5 {[%emt 0:03:19]} 12. f3 {[%emt 0:04:06]} Nd6 {[%emt 0:03:15]} 13. e4 {[%emt 0:02:42]} h6 {[%emt 0:04:46]} 14. Nc6 {[%emt 0:03:34]} Qd7 {[%emt 0:02:34]} 15. e5 {[%emt 0:02:04]} Nfe8 {[%emt 0:02:01]} 16. exd6 {[%emt 0:04:02]} Qxc6 {[%emt 0:00:56]} 17. dxc7 {[%emt 0:00:23]} Nxc7 {[%emt 0:01:15]} 18. Re1 {[%emt 0:01:36]} Re8 {[%emt 0:01:37]} 19. Be3 {[%emt 0:01:37]} Nb5 {[%emt 0:02:17]} 20. Qa4 {[%emt 0:05:50]} Bd7 {[%emt 0:03:20]} 21. Rac1 {[%emt 0:01:14]} a6 {[%emt 0:05:22]} 22. c4 {[%emt 0:04:16]} dxc4 {[%emt 0:02:34]} 23. Rxc4 {[%emt 0:01:11]} Qd6 {[%emt 0:03:00]} 24. Qd1 {[%emt 0:06:17]} Be6 {[%emt 0:03:08]} 25. d5 {[%emt 0:06:35]} Bxd5 {[%emt 0:08:34]} 26. Rg4 {[%emt 0:00:27]} Bc6 {[%emt 0:07:14]} 27. a4 {[%emt 0:03:07]} Rad8 {[%emt 0:02:55]} 28. axb5 {[%emt 0:05:03]} Qxd3 {[%emt 0:06:41]} 29. Qa1 {[%emt 0:00:29]} g6 {[%emt 0:00:38]} 30. bxc6 {[%emt 0:08:08]} Rxe3 {[%emt 0:01:09]} 31. c7 {[%emt 0:02:20]} Rde8 {[%emt 0:02:40]} 32. Rd4 {[%emt 0:04:21]} Rxe1+ {[%emt 0:02:10]} 33. Kf2 {[%emt 0:00:11]} Rxa1 {[%emt 0:01:23]} 34. Rxd3 {[%emt 0:00:13]} Rc1 {[%emt 0:00:13]} 35. Rd8 {[%emt 0:01:10]} Kf8 {[%emt 0:02:00]} 36. Rd7 {[%emt 0:02:21]} a5 {[%emt 0:00:42]} 37. h4 {[%emt 0:06:39]} a4 {[%emt 0:01:02]} 38. Rd6 {[%emt 0:00:50]} Rxc7 {[%emt 0:00:44]} 39. Rxb6 {[%emt 0:00:04]} Ra7 {[%emt 0:00:12]} 40. Rb1 {[%emt 0:00:33]} a3 {[%emt 0:00:13]} 41. Ra1 {[%emt 0:00:26]} a2 {[%emt 0:00:06]} 42. g4 {[%emt 0:00:39]} Rb8 {[%emt 0:00:07]} 43. Rxa2 {[%emt 0:01:40]} Rxa2+ {[%emt 0:00:08]} 44. Kg3 {[%emt 0:00:16]} g5 {[%emt 0:00:11]} 45. Kh3 {[%emt 0:00:48]} Rbb2 {[%emt 0:00:15]} 46. hxg5 {[%emt 0:01:50]} hxg5 {[%emt 0:00:17]} 47. f4 {[%emt 0:00:12]} Ra3# {[%emt 0:00:40]} 0-1

[Event "ONJK-C 2019"]
[Site "Borne"]
[Date "2019.08.08"]
[Round "6.13"]
[White "Yannopapas, Leontios"]
[Black "Molanus, Florian"]
[Result "1/2-1/2"]
[ECO "D00"]
[WhiteElo "1428"]
[BlackElo "1287"]
[Annotator "NA"]
[PlyCount "58"]
[EventDate "2019.08.05"]
[EventType "swiss"]
[EventCountry "NED"]
[SourceTitle "playchess.com"]
[Source "ChessBase"]
[SourceQuality "1"]
[TimeControl "5400+30"]

1. d4 {[%emt 0:00:00]} d5 {[%emt 0:00:00]} 2. Nc3 {[%emt 0:00:00]} Nf6 {[%emt 0:00:00]} 3. Bf4 {[%emt 0:00:00]} e6 {[%emt 0:00:19]} 4. Nb5 {[%emt 0:00:04]} Bd6 {[%emt 0:00:21]} 5. Nxd6+ {[%emt 0:00:11]} cxd6 {[%emt 0:00:07]} 6. e3 {[%emt 0:00:48]} O-O {[%emt 0:00:25]} 7. Nf3 {[%emt 0:00:24]} Nc6 {[%emt 0:02:51]} 8. Be2 {[%emt 0:01:21]} h6 {[%emt 0:04:32]} 9. h3 {[%emt 0:03:44]} Re8 {[%emt 0:02:55]} 10. g4 {[%emt 0:06:25]} e5 {[%emt 0:02:46]} 11. Bg3 {[%emt 0:04:19]} g5 {[%emt 0:25:26]} 12. c3 {[%emt 0:05:04]} Qb6 {[%emt 0:08:51]} 13. Qc2 {[%emt 0:02:19]} e4 {[%emt 0:03:15]} 14. Nh2 {[%emt 0:01:04]} Bd7 {[%emt 0:03:21]} 15. h4 {[%emt 0:05:20]} Rac8 {[%emt 0:05:07]} 16. Qd2 {[%emt 0:01:08]} Ne7 {[%emt 0:01:49]} 17. O-O {[%emt 0:02:20]} Ng6 {[%emt 0:03:30]} 18. h5 {[%emt 0:08:59]} Nf8 {[%emt 0:01:44]} 19. f4 {[%emt 0:03:05]} exf3 {[%emt 0:01:05]} 20. Bxf3 {[%emt 0:00:28]} Ne4 {[%emt 0:01:42]} 21. Bxe4 {[%emt 0:00:55]} Rxe4 {[%emt 0:00:50]} 22. Qf2 {[%emt 0:00:49]} Be6 {[%emt 0:00:37]} 23. Rae1 {[%emt 0:07:15]} Nd7 {[%emt 0:02:10]} 24. Kh1 {[%emt 0:06:37]} Rf8 {[%emt 0:02:03]} 25. Qe2 {[%emt 0:01:22]} Kg7 {[%emt 0:04:33]} 26. Rg1 {[%emt 0:06:19]} Nf6 {[%emt 0:02:32]} 27. Bf2 {[%emt 0:00:20]} Qc6 {[%emt 0:03:25]} 28. Ra1 {[%emt 0:03:26]} Qc4 {[%emt 0:01:58]} 29. Qd1 {[%emt 0:01:04]} Qb5 {[%emt 0:01:34]} 1/2-1/2

[Event "ONJK-C 2019"]
[Site "Borne"]
[Date "2019.08.08"]
[Round "6.14"]
[White "Oskam, Julian"]
[Black "De Keukelaere, Wouter"]
[Result "0-1"]
[ECO "B13"]
[WhiteElo "1197"]
[BlackElo "1240"]
[Annotator "NA"]
[PlyCount "99"]
[EventDate "2019.08.05"]
[EventType "swiss"]
[EventCountry "NED"]
[SourceTitle "playchess.com"]
[Source "ChessBase"]
[SourceQuality "1"]
[TimeControl "5400+30"]

1. e4 {[%emt 0:00:00]} c6 {[%emt 0:00:00]} 2. Nc3 {[%emt 0:00:00]} d5 {[%emt 0:00:04]} 3. exd5 {[%emt 0:00:47]} cxd5 {[%emt 0:00:07]} 4. d4 {[%emt 0:00:15]} Nc6 {[%emt 0:00:55]} 5. g3 {[%emt 0:02:05]} Bf5 {[%emt 0:00:37]} 6. a3 {[%emt 0:01:34]} e6 {[%emt 0:02:03]} 7. Nge2 {[%emt 0:01:04]} Bd6 {[%emt 0:01:39]} 8. Bg2 {[%emt 0:01:18]} Nf6 {[%emt 0:01:56]} 9. O-O {[%emt 0:01:05]} O-O {[%emt 0:00:25]} 10. h3 {[%emt 0:02:23]} h6 {[%emt 0:04:30]} 11. Re1 {[%emt 0:11:51]} a6 {[%emt 0:07:21]} 12. Rb1 {[%emt 0:08:28]} Qc7 {[%emt 0:04:25]} 13. Bf4 {[%emt 0:04:53]} Rfe8 {[%emt 0:04:42]} 14. Bxd6 {[%emt 0:01:01]} Qxd6 {[%emt 0:02:32]} 15. Qd2 {[%emt 0:15:14]} Rad8 {[%emt 0:02:35]} 16. Nf4 {[%emt 0:04:08]} b5 {[%emt 0:13:23]} 17. b4 {[%emt 0:05:47]} Rc8 {[%emt 0:03:09]} 18. Rb2 {[%emt 0:06:50]} Re7 {[%emt 0:05:37]} 19. Na2 {[%emt 0:03:40]} Rec7 {[%emt 0:05:29]} 20. c3 {[%emt 0:02:00]} Ne4 {[%emt 0:05:31]} 21. Bxe4 {[%emt 0:05:08]} Bxe4 {[%emt 0:02:52]} 22. Ne2 {[%emt 0:02:01]} e5 {[%emt 0:02:59]} 23. Nac1 {[%emt 0:04:16]} Qf6 {[%emt 0:05:39]} 24. f4 {[%emt 0:03:27]} exd4 {[%emt 0:11:06]} 25. cxd4 {[%emt 0:02:37]} g5 {[%emt 0:02:05]} 26. Nd3 {[%emt 0:01:24]} Nxd4 {[%emt 0:01:16]} 27. Nxd4 {[%emt 0:02:34]} Qxd4+ {[%emt 0:00:02]} 28. Nf2 {[%emt 0:01:28]} Qb6 {[%emt 0:06:24]} 29. fxg5 {[%emt 0:01:06]} Rc2 {[%emt 0:00:22]} 30. Rxc2 {[%emt 0:00:27]} Rxc2 {[%emt 0:00:01]} 31. Qf4 {[%emt 0:00:52]} Qd4 {[%emt 0:02:11]} 32. gxh6 {[%emt 0:00:59]} Qb2 {[%emt 0:01:14]} 33. Rxe4 {[%emt 0:01:51]} dxe4 {[%emt 0:01:09]} 34. Qg5+ {[%emt 0:02:37]} Kh8 {[%emt 0:01:13]} 35. h7 {[%emt 0:01:13]} Qc1+ {[%emt 0:00:37]} 36. Qxc1 {[%emt 0:00:18]} Rxc1+ {[%emt 0:00:02]} 37. Kg2 {[%emt 0:00:11]} Rc2 {[%emt 0:01:15]} 38. Kf1 {[%emt 0:00:07]} Rc1+ {[%emt 0:00:46]} 39. Ke2 {[%emt 0:00:13]} Rc2+ {[%emt 0:00:44]} 40. Ke3 {[%emt 0:00:24]} f5 {[%emt 0:00:07]} 41. h4 {[%emt 0:00:57]} Rc3+ {[%emt 0:00:15]} 42. Kd4 {[%emt 0:01:16]} e3 {[%emt 0:00:35]} 43. Nd3 {[%emt 0:00:32]} Rxa3 {[%emt 0:00:44]} 44. Kxe3 {[%emt 0:00:03]} Kxh7 {[%emt 0:02:01]} 45. Kd4 {[%emt 0:00:33]} a5 {[%emt 0:00:23]} 46. bxa5 {[%emt 0:01:13]} Rxa5 {[%emt 0:00:00]} 47. Ke5 b4+ {[%emt 0:00:00]} 48. Kf4 b3 {[%emt 0:00:05]} 49. Kg5 Ra2 {[%emt 0:02:01]} 50. Kxf5 {[%emt 0:00:10]} 0-1

[Event "ONJK-C 2019"]
[Site "Borne"]
[Date "2019.08.09"]
[Round "7.1"]
[White "De Rycke, Tyani"]
[Black "De Vries, Fabian"]
[Result "1-0"]
[ECO "B18"]
[WhiteElo "1787"]
[BlackElo "1704"]
[Annotator "NA RC"]
[PlyCount "155"]
[EventDate "2019.08.05"]
[EventType "swiss"]
[EventCountry "NED"]
[SourceTitle "playchess.com"]
[Source "ChessBase"]
[SourceQuality "1"]
[TimeControl "5400+30"]

1. e4 {[%emt 0:00:00]} c6 {[%emt 0:00:00]} 2. d4 {[%emt 0:00:00]} d5 {[%emt 0:00:00]} 3. Nc3 {[%emt 0:00:00]} dxe4 {[%emt 0:00:00]} 4. Nxe4 {[%emt 0:00:00]} Bf5 {[%emt 0:00:00]} 5. Ng3 {[%emt 0:00:08]} Bg6 {[%emt 0:00:01]} 6. Nf3 {[%emt 0:00:09]} Nf6 {[%emt 0:00:25]} 7. Bd3 {[%emt 0:00:18]} e6 {[%emt 0:00:24]} 8. Bxg6 {[%emt 0:00:25]} hxg6 {[%emt 0:00:15]} 9. O-O {[%emt 0:01:04]} Nbd7 {[%emt 0:03:23]} 10. b3 {[%emt 0:02:06]} c5 {[%emt 0:00:58]} 11. c4 {[%emt 0:00:53]} cxd4 {[%emt 0:05:35]} 12. Nxd4 {[%emt 0:00:38]} Bc5 {[%emt 0:04:06]} 13. Bb2 {[%emt 0:03:57]} O-O {[%emt 0:02:37]} 14. a3 {[%emt 0:00:50]} Rc8 {[%emt 0:07:03]} 15. Rc1 {[%emt 0:02:34]} Qe7 {[%emt 0:07:10]} 16. b4 {[%emt 0:01:28]} Bxd4 {[%emt 0:00:43]} 17. Qxd4 {[%emt 0:02:00]} b6 {[%emt 0:05:48]} 18. Ne4 {[%emt 0:01:42]} Rfd8 {[%emt 0:02:57]} 19. Rfd1 {[%emt 0:00:48]} e5 {[%emt 0:14:17]} 20. Qd6 {[%emt 0:02:40]} Kf8 {[%emt 0:07:14]} 21. Nxf6 {[%emt 0:02:38]} gxf6 {[%emt 0:01:19]} 22. Qd2 {[%emt 0:01:39]} Nb8 {[%emt 0:03:28]} 23. Qh6+ {[%emt 0:02:24]} Kg8 {[%emt 0:00:38]} 24. f4 {[%emt 0:16:00]} Rxd1+ {[%emt 0:08:01]} 25. Rxd1 {[%emt 0:00:19]} Rd8 {[%emt 0:02:24]} 26. Rf1 {[%emt 0:09:11]} Qf8 {[%emt 0:05:00]} 27. Qxf8+ {[%emt 0:00:46]} Kxf8 {[%emt 0:00:12]} 28. fxe5 {[%emt 0:00:09]} Rd2 {[%emt 0:01:42]} 29. Bc1 {[%emt 0:00:48]} Rc2 {[%emt 0:00:56]} 30. Bh6+ {[%emt 0:00:30]} Ke7 {[%emt 0:01:26]} 31. exf6+ {[%emt 0:03:40]} Ke6 {[%emt 0:01:01]} 32. Bg5 {[%emt 0:09:33]} Rxc4 {[%emt 0:03:29]} 33. Re1+ {[%emt 0:00:38]} Kf5 {[%emt 0:03:49]} 34. h4 {[%emt 0:00:36]} Nc6 {[%emt 0:02:10]} 35. Re8 {[%emt 0:01:22]} Rc3 {[%emt 0:03:44]} 36. b5 {[%emt 0:03:10]} Ne5 {[%emt 0:00:34]} 37. Re7 {[%emt 0:04:40]} Rxa3 {[%emt 0:01:21]} 38. g4+ {[%emt 0:01:15]} Nxg4 {[%emt 0:01:30]} 39. Rxf7 {[%emt 0:00:11]} Rg3+ {[%emt 0:00:29]} 40. Kf1 {[%emt 0:00:32]} Ke6 {[%emt 0:01:01]} 41. Re7+ {[%emt 0:00:45]} Kd5 {[%emt 0:00:17]} 42. Ke2 {[%emt 0:01:23]} Nxf6 {[%emt 0:02:20]} 43. Bxf6 {[%emt 0:00:16]} Rb3 {[%emt 0:00:37]} 44. Rxa7 {[%emt 0:00:59]} Rxb5 {[%emt 0:00:15]} 45. Rg7 {[%emt 0:00:40]} Ke6 {[%emt 0:01:00]} 46. Rxg6 {[%emt 0:01:14]} Kf7 {[%emt 0:00:15]} 47. Rh6 {[%emt 0:00:59]} Rb1 {[%emt 0:00:37]} 48. Bg5 {[%emt 0:00:29]} b5 {[%emt 0:00:24]} 49. Rb6 {[%emt 0:00:07]} b4 {[%emt 0:00:17]} 50. Kd3 {[%emt 0:00:11]} b3 {[%emt 0:00:22]} 51. Kc3 {[%emt 0:00:17]} Rh1 {[%emt 0:00:57]} 52. Rxb3 {[%emt 0:00:22]} Kg6 {[%emt 0:00:07]} 53. Rb6+ {[%emt 0:00:46]} Kh5 {[%emt 0:00:16]} 54. Kd3 {[%emt 0:00:32]} Re1 {[%emt 0:00:10]} 55. Rb5 {[%emt 0:00:41]} Re6 {[%emt 0:00:17]} 56. Rd5 {[%emt 0:01:05]} Kg6 {[%emt 0:00:16]} 57. Rd4 {[%emt 0:00:17]} Re1 {[%emt 0:00:28]} 58. Re4 {[%emt 0:00:32]} Rd1+ {[%emt 0:00:23]} 59. Ke2 {[%emt 0:00:08]} Rg1 {[%emt 0:00:34]} 60. Kf2 {[%emt 0:00:30]} Rh1 {[%emt 0:00:27]} 61. Re1 {[%emt 0:02:12]} Rh3 {[%emt 0:00:10]} 62. Kg2 {[%emt 0:00:43]} Rb3 {[%emt 0:00:19]} 63. Re3 {[%emt 0:00:20]} Rb1 {[%emt 0:00:12]} 64. Kf3 {[%emt 0:00:09]} Rf1+ {[%emt 0:00:18]} 65. Kg4 {[%emt 0:00:07]} Rg1+ {[%emt 0:00:19]} 66. Rg3 {[%emt 0:00:06]} Rh1 {[%emt 0:00:31]} 67. Rg2 {[%emt 0:00:50]} Rb1 {[%emt 0:00:51]} 68. h5+ {[%emt 0:00:40]} Kh7 {[%emt 0:00:15]} 69. Rf2 {[%emt 0:00:38]} Rg1+ {[%emt 0:00:19]} 70. Kf5 {[%emt 0:00:20]} Rb1 {[%emt 0:00:45]} 71. Re2 {[%emt 0:00:14]} Rf1+ {[%emt 0:00:38]} 72. Bf4 {[%emt 0:00:07]} Rb1 {[%emt 0:00:43]} 73. Re7+ {[%emt 0:00:42]} Kg8 {[%emt 0:00:21]} 74. h6 {[%emt 0:00:16]} Rf1 {[%emt 0:00:24]} 75. Kg6 {[%emt 0:00:43]} Rxf4 {[%emt 0:02:42]} 76. Re8+ {[%emt 0:00:08]} Rf8 {[%emt 0:00:07]} 77. h7+ {[%emt 0:00:06]} Kh8 {[%emt 0:00:04]} 78. Rxf8# {[%emt 0:00:05]} 1-0